[Event "Early-Titled-Tuesday-Blitz-May-28-2024"]
[Site "Chess.com"]
[Date "2024.05.28"]
[Round "3"]
[White "djano"]
[Black "H3nriqueTV"]
[Result "1/2-1/2"]
[WhiteElo "2581"]
[BlackElo "2357"]
[TimeControl "180+1"]
[EndTime "8:30:58 PDT"]
[Termination "Game drawn by 50-move rule"]

1. e4 {[%clk 0:03:00.9]} 1... c5 {[%clk 0:02:56.1]} 2. Nc3 {[%clk 0:03:00.5]}
2... b6 {[%clk 0:02:54]} 3. f4 {[%clk 0:03:00.3]} 3... Bb7 {[%clk 0:02:52.2]} 4.
Nf3 {[%clk 0:03:00.7]} 4... e6 {[%clk 0:02:49.4]} 5. d4 {[%clk 0:02:59.7]} 5...
cxd4 {[%clk 0:02:49.2]} 6. Nxd4 {[%clk 0:03:00.6]} 6... a6 {[%clk 0:02:49.8]} 7.
Be3 {[%clk 0:02:53.8]} 7... Qc7 {[%clk 0:02:49.1]} 8. Bd3 {[%clk 0:02:49.1]}
8... Bb4 {[%clk 0:02:47.9]} 9. O-O {[%clk 0:02:48.6]} 9... Bxc3 {[%clk
0:02:46.3]} 10. bxc3 {[%clk 0:02:49.5]} 10... Qxc3 {[%clk 0:02:46.4]} 11. Rb1
{[%clk 0:02:44.8]} 11... Qc7 {[%clk 0:02:44]} 12. f5 {[%clk 0:02:44.5]} 12...
Nf6 {[%clk 0:02:38.9]} 13. fxe6 {[%clk 0:02:40.6]} 13... dxe6 {[%clk 0:02:39]}
14. Qe1 {[%clk 0:02:06.3]} 14... Nbd7 {[%clk 0:02:35.7]} 15. Qh4 {[%clk
0:01:47.1]} 15... Ne5 {[%clk 0:02:16.1]} 16. Rxf6 {[%clk 0:01:40.2]} 16... gxf6
{[%clk 0:02:16]} 17. Qxf6 {[%clk 0:01:41.1]} 17... Rg8 {[%clk 0:02:16.7]} 18.
Nxe6 {[%clk 0:01:36.6]} 18... Qe7 {[%clk 0:01:16.7]} 19. Ng7+ {[%clk 0:01:15]}
19... Kf8 {[%clk 0:01:12.5]} 20. Qxe7+ {[%clk 0:00:57.5]} 20... Kxe7 {[%clk
0:01:12.4]} 21. Nf5+ {[%clk 0:00:58.4]} 21... Kd7 {[%clk 0:01:10.5]} 22. Rxb6
{[%clk 0:00:56.3]} 22... Bc6 {[%clk 0:01:05.5]} 23. Bf4 {[%clk 0:00:43.7]} 23...
Ng6 {[%clk 0:00:44.7]} 24. Bg3 {[%clk 0:00:40.2]} 24... Rge8 {[%clk 0:00:34.4]}
25. Nd6 {[%clk 0:00:31.8]} 25... Re6 {[%clk 0:00:32.2]} 26. Nxf7 {[%clk
0:00:29]} 26... Rf8 {[%clk 0:00:25.5]} 27. Ng5 {[%clk 0:00:23.8]} 27... Re7
{[%clk 0:00:25.6]} 28. Rxa6 {[%clk 0:00:18.2]} 28... Ne5 {[%clk 0:00:21.5]} 29.
h3 {[%clk 0:00:13.2]} 29... Nxd3 {[%clk 0:00:20.4]} 30. cxd3 {[%clk 0:00:14.1]}
30... Bb5 {[%clk 0:00:20.3]} 31. Ra3 {[%clk 0:00:12.6]} 31... Kc6 {[%clk
0:00:19.9]} 32. Nf3 {[%clk 0:00:12.5]} 32... Rd8 {[%clk 0:00:19]} 33. Ne5+
{[%clk 0:00:12.4]} 33... Rxe5 {[%clk 0:00:18.4]} 34. Bxe5 {[%clk 0:00:13.3]}
34... Bxd3 {[%clk 0:00:19]} 35. Rc3+ {[%clk 0:00:13]} 35... Kb5 {[%clk
0:00:18.8]} 36. Rc7 {[%clk 0:00:09.1]} 36... Bxe4 {[%clk 0:00:18.5]} 37. a3
{[%clk 0:00:08]} 37... Rd2 {[%clk 0:00:18.1]} 38. Rg7 {[%clk 0:00:07.2]} 38...
Ka4 {[%clk 0:00:16]} 39. Bc3 {[%clk 0:00:06.3]} 39... Rd1+ {[%clk 0:00:15]} 40.
Kh2 {[%clk 0:00:06.9]} 40... Kxa3 {[%clk 0:00:15.4]} 41. Rg3 {[%clk 0:00:06.4]}
41... Ka4 {[%clk 0:00:14.9]} 42. Rg4 {[%clk 0:00:06.1]} 42... Kb3 {[%clk
0:00:12.9]} 43. Rxe4 {[%clk 0:00:06.3]} 43... Kxc3 {[%clk 0:00:12.3]} 44. Re7
{[%clk 0:00:06.9]} 44... h5 {[%clk 0:00:10.6]} 45. Re5 {[%clk 0:00:07.1]} 45...
h4 {[%clk 0:00:09.7]} 46. Re4 {[%clk 0:00:07.5]} 46... Rd4 {[%clk 0:00:10.6]}
47. Re8 {[%clk 0:00:05.4]} 47... Kc4 {[%clk 0:00:09.5]} 48. Kg1 {[%clk
0:00:05.7]} 48... Rf4 {[%clk 0:00:08.1]} 49. Re1 {[%clk 0:00:03.9]} 49... Kd3
{[%clk 0:00:08.1]} 50. Re8 {[%clk 0:00:03.9]} 50... Kd4 {[%clk 0:00:08.4]} 51.
Rg8 {[%clk 0:00:04.4]} 51... Ke5 {[%clk 0:00:08.3]} 52. Rg5+ {[%clk 0:00:03.5]}
52... Kf6 {[%clk 0:00:08.3]} 53. Ra5 {[%clk 0:00:04.4]} 53... Kg6 {[%clk
0:00:08.1]} 54. Kh2 {[%clk 0:00:04.1]} 54... Kf6 {[%clk 0:00:07.9]} 55. Ra3
{[%clk 0:00:04.5]} 55... Kg6 {[%clk 0:00:08]} 56. Rf3 {[%clk 0:00:05.2]} 56...
Rc4 {[%clk 0:00:07.7]} 57. Kg1 {[%clk 0:00:05.8]} 57... Kg5 {[%clk 0:00:07.6]}
58. Kf2 {[%clk 0:00:06.7]} 58... Rc2+ {[%clk 0:00:07.4]} 59. Kf1 {[%clk
0:00:07.4]} 59... Rb2 {[%clk 0:00:07.4]} 60. Re3 {[%clk 0:00:07.4]} 60... Ra2
{[%clk 0:00:07.7]} 61. Re2 {[%clk 0:00:07.5]} 61... Ra3 {[%clk 0:00:07.8]} 62.
Kf2 {[%clk 0:00:07.6]} 62... Ra4 {[%clk 0:00:08.3]} 63. Re5+ {[%clk 0:00:07.6]}
63... Kf4 {[%clk 0:00:07.7]} 64. Re2 {[%clk 0:00:08.5]} 64... Kg5 {[%clk
0:00:06.9]} 65. Rc2 {[%clk 0:00:08.9]} 65... Kg6 {[%clk 0:00:06.8]} 66. Rc5
{[%clk 0:00:09]} 66... Rb4 {[%clk 0:00:03.6]} 67. Re5 {[%clk 0:00:08.5]} 67...
Ra4 {[%clk 0:00:03.9]} 68. Kf3 {[%clk 0:00:08.8]} 68... Kf6 {[%clk 0:00:04.3]}
69. Re4 {[%clk 0:00:09.3]} 69... Ra3+ {[%clk 0:00:04.1]} 70. Kf4 {[%clk
0:00:08.7]} 70... Ra2 {[%clk 0:00:04.1]} 71. Kf3 {[%clk 0:00:07.8]} 71... Kg5
{[%clk 0:00:03.8]} 72. Rg4+ {[%clk 0:00:08.1]} 72... Kh5 {[%clk 0:00:03.9]} 73.
Rg8 {[%clk 0:00:09]} 73... Ra3+ {[%clk 0:00:04.3]} 74. Kf4 {[%clk 0:00:09.5]}
74... Ra4+ {[%clk 0:00:04.8]} 75. Kf3 {[%clk 0:00:09.8]} 75... Ra3+ {[%clk
0:00:05.2]} 76. Kf2 {[%clk 0:00:10.4]} 76... Ra2+ {[%clk 0:00:05.7]} 77. Kg1
{[%clk 0:00:11.3]} 77... Ra3 {[%clk 0:00:05.7]} 78. Rg7 {[%clk 0:00:11.3]} 78...
Kh6 {[%clk 0:00:05.8]} 79. Rg4 {[%clk 0:00:10.9]} 79... Kh5 {[%clk 0:00:06.4]}
80. Rc4 {[%clk 0:00:11.5]} 80... Rb3 {[%clk 0:00:06.4]} 81. Rc5+ {[%clk
0:00:11.7]} 81... Kh6 {[%clk 0:00:06.4]} 82. Re5 {[%clk 0:00:12.4]} 82... Rb4
{[%clk 0:00:06.8]} 83. Kf2 {[%clk 0:00:12.7]} 83... Kg6 {[%clk 0:00:07.2]} 84.
Kf3 {[%clk 0:00:13.2]} 84... Kf6 {[%clk 0:00:07]} 85. Re4 {[%clk 0:00:13.6]}
85... Rb3+ {[%clk 0:00:06.8]} 86. Re3 {[%clk 0:00:13.9]} 86... Rb4 {[%clk
0:00:06.8]} 87. Rd3 {[%clk 0:00:13.9]} 87... Kg5 {[%clk 0:00:06.5]} 88. Rd5+
{[%clk 0:00:14.2]} 88... Kg6 {[%clk 0:00:06.7]} 89. Re5 {[%clk 0:00:14.6]} 89...
Kf6 {[%clk 0:00:05.4]} 90. Rh5 {[%clk 0:00:14.8]} 90... Kg6 {[%clk 0:00:05.7]}
91. Rh8 {[%clk 0:00:15.4]} 91... Ra4 {[%clk 0:00:06]} 92. Rg8+ {[%clk
0:00:15.3]} 92... Kh5 {[%clk 0:00:06.2]} 93. Rg4 {[%clk 0:00:16.2]} 93... Ra3+
{[%clk 0:00:05.6]} 94. Kf4 {[%clk 0:00:16.3]} 94... Ra4+ {[%clk 0:00:06.1]} 95.
Ke3 {[%clk 0:00:16.6]} 95... Ra3+ {[%clk 0:00:06.3]} 1/2-1/2

[Event "Early-Titled-Tuesday-Blitz-May-28-2024"]
[Site "Chess.com"]
[Date "2024.05.28"]
[Round "3"]
[White "RobertoJBM"]
[Black "AlexandraSamaganova"]
[Result "1/2-1/2"]
[WhiteElo "2800"]
[BlackElo "2394"]
[TimeControl "180+1"]
[EndTime "8:30:59 PDT"]
[Termination "Game drawn - insufficient material"]

1. d4 {[%clk 0:02:56.5]} 1... Nf6 {[%clk 0:02:58.8]} 2. Nf3 {[%clk 0:02:55.6]}
2... e6 {[%clk 0:02:58.7]} 3. e3 {[%clk 0:02:56]} 3... b6 {[%clk 0:02:58.5]} 4.
Bd3 {[%clk 0:02:56.1]} 4... Bb7 {[%clk 0:02:58.3]} 5. Qe2 {[%clk 0:02:56.7]}
5... c5 {[%clk 0:02:52.2]} 6. c3 {[%clk 0:02:56.5]} 6... Be7 {[%clk 0:02:51.9]}
7. e4 {[%clk 0:02:56.2]} 7... d6 {[%clk 0:02:51.6]} 8. O-O {[%clk 0:02:55.9]}
8... O-O {[%clk 0:02:51.2]} 9. Re1 {[%clk 0:02:53.1]} 9... Nc6 {[%clk
0:02:47.8]} 10. a3 {[%clk 0:02:53.3]} 10... Rc8 {[%clk 0:02:26.8]} 11. Nbd2
{[%clk 0:02:52.9]} 11... d5 {[%clk 0:02:22.4]} 12. e5 {[%clk 0:02:52.8]} 12...
Nd7 {[%clk 0:02:22.8]} 13. b4 {[%clk 0:02:53]} 13... cxd4 {[%clk 0:02:22]} 14.
cxd4 {[%clk 0:02:53.1]} 14... Re8 {[%clk 0:02:15.9]} 15. Bb2 {[%clk 0:02:48.3]}
15... Nf8 {[%clk 0:02:15.3]} 16. Rac1 {[%clk 0:02:45.9]} 16... Ng6 {[%clk
0:02:15.2]} 17. g3 {[%clk 0:02:46.4]} 17... Bg5 {[%clk 0:02:09.9]} 18. Rc2
{[%clk 0:02:38.9]} 18... Bxd2 {[%clk 0:02:06.1]} 19. Qxd2 {[%clk 0:02:36.8]}
19... Nce7 {[%clk 0:02:04.4]} 20. Rec1 {[%clk 0:02:35.5]} 20... Qd7 {[%clk
0:02:04]} 21. h4 {[%clk 0:02:33]} 21... Rxc2 {[%clk 0:02:03.2]} 22. Rxc2 {[%clk
0:02:32.1]} 22... Rc8 {[%clk 0:02:03.3]} 23. h5 {[%clk 0:02:30.4]} 23... Nf8
{[%clk 0:02:02.7]} 24. h6 {[%clk 0:02:29.8]} 24... Nf5 {[%clk 0:01:49.5]} 25.
hxg7 {[%clk 0:02:19.4]} 25... Nxg7 {[%clk 0:01:43.6]} 26. Rxc8 {[%clk
0:02:14.1]} 26... Qxc8 {[%clk 0:01:43]} 27. Qh6 {[%clk 0:02:12.1]} 27... Bc6
{[%clk 0:01:31.8]} 28. Ng5 {[%clk 0:02:05.6]} 28... Nf5 {[%clk 0:01:24.5]} 29.
Qf6 {[%clk 0:02:00.7]} 29... Be8 {[%clk 0:01:18.1]} 30. Nh3 {[%clk 0:01:27.9]}
30... Ng7 {[%clk 0:01:05.3]} 31. b5 {[%clk 0:00:57.8]} 31... Bd7 {[%clk
0:00:55.9]} 32. a4 {[%clk 0:00:55.2]} 32... Ng6 {[%clk 0:00:51.5]} 33. Ng5
{[%clk 0:00:50.9]} 33... Qe8 {[%clk 0:00:46.6]} 34. Qf3 {[%clk 0:00:43.9]} 34...
h6 {[%clk 0:00:41.7]} 35. Nh3 {[%clk 0:00:43.6]} 35... Qe7 {[%clk 0:00:38.8]}
36. Qe3 {[%clk 0:00:43]} 36... Qb4 {[%clk 0:00:23.7]} 37. Bc1 {[%clk 0:00:42.9]}
37... Qc3 {[%clk 0:00:18.1]} 38. Bxg6 {[%clk 0:00:31.5]} 38... Qxe3 {[%clk
0:00:15.4]} 39. Bxf7+ {[%clk 0:00:32]} 39... Kxf7 {[%clk 0:00:13.1]} 40. fxe3
{[%clk 0:00:31.5]} 40... Nf5 {[%clk 0:00:11.4]} 41. g4 {[%clk 0:00:30]} 41...
Ng3 {[%clk 0:00:09.5]} 42. Kf2 {[%clk 0:00:29.3]} 42... Ne4+ {[%clk 0:00:09.9]}
43. Kf3 {[%clk 0:00:28.3]} 43... Nc3 {[%clk 0:00:09.9]} 44. e4 {[%clk
0:00:27.4]} 44... dxe4+ {[%clk 0:00:08.8]} 45. Ke3 {[%clk 0:00:26.5]} 45... Nxa4
{[%clk 0:00:07.9]} 46. Kxe4 {[%clk 0:00:26.7]} 46... Bxb5 {[%clk 0:00:06.7]} 47.
Bxh6 {[%clk 0:00:26.1]} 47... Nc3+ {[%clk 0:00:06.9]} 48. Ke3 {[%clk 0:00:25.3]}
48... Nd5+ {[%clk 0:00:06.7]} 49. Kd2 {[%clk 0:00:25.7]} 49... a5 {[%clk
0:00:06.7]} 50. Kc2 {[%clk 0:00:20.8]} 50... Kg6 {[%clk 0:00:04.6]} 51. Bf8
{[%clk 0:00:20.2]} 51... Ne3+ {[%clk 0:00:04.2]} 52. Kc3 {[%clk 0:00:19.2]}
52... Nxg4 {[%clk 0:00:04.5]} 53. Nf4+ {[%clk 0:00:19]} 53... Kf5 {[%clk
0:00:04.3]} 54. Nh5 {[%clk 0:00:16.7]} 54... Ne3 {[%clk 0:00:04]} 55. Ng7+
{[%clk 0:00:16.4]} 55... Ke4 {[%clk 0:00:04.3]} 56. Nxe6 {[%clk 0:00:16.6]}
56... Nd5+ {[%clk 0:00:04.3]} 57. Kd2 {[%clk 0:00:14.7]} 57... Bd7 {[%clk
0:00:03.3]} 58. Ng5+ {[%clk 0:00:11.9]} 58... Kxd4 {[%clk 0:00:03.7]} 59. Bg7
{[%clk 0:00:12.4]} 59... Kc4 {[%clk 0:00:03.4]} 60. Kc2 {[%clk 0:00:09.9]} 60...
Be8 {[%clk 0:00:02.9]} 61. Kb2 {[%clk 0:00:09.6]} 61... Nf4 {[%clk 0:00:03.1]}
62. e6 {[%clk 0:00:09.1]} 62... Kd5 {[%clk 0:00:03]} 63. e7 {[%clk 0:00:06.8]}
63... Kd6 {[%clk 0:00:03]} 64. Bf8 {[%clk 0:00:06.3]} 64... Nd5 {[%clk 0:00:03]}
65. Ne4+ {[%clk 0:00:05.8]} 65... Ke6 {[%clk 0:00:03.5]} 66. Ng5+ {[%clk
0:00:05.2]} 66... Kd7 {[%clk 0:00:03.9]} 67. Ne4 {[%clk 0:00:04.7]} 67... Nxe7
{[%clk 0:00:04.2]} 68. Nf6+ {[%clk 0:00:05.2]} 68... Kd8 {[%clk 0:00:04.5]} 69.
Kc3 {[%clk 0:00:05.2]} 69... Nc6 {[%clk 0:00:04.5]} 70. Kc4 {[%clk 0:00:05.4]}
70... Bd7 {[%clk 0:00:04.4]} 71. Kd5 {[%clk 0:00:05]} 71... Kc7 {[%clk
0:00:04.6]} 72. Bd6+ {[%clk 0:00:04.6]} 72... Kc8 {[%clk 0:00:04.4]} 73. Bg3
{[%clk 0:00:05.2]} 73... Nb4+ {[%clk 0:00:04.6]} 74. Kd6 {[%clk 0:00:05.7]}
74... Bb5 {[%clk 0:00:04.9]} 75. Ne4 {[%clk 0:00:05.6]} 75... Kb7 {[%clk
0:00:05.1]} 76. Nc3 {[%clk 0:00:06]} 76... Ka6 {[%clk 0:00:05.3]} 77. Bf2 {[%clk
0:00:06.4]} 77... Bf1 {[%clk 0:00:05.3]} 78. Ne4 {[%clk 0:00:06.1]} 78... b5
{[%clk 0:00:05.6]} 79. Nd2 {[%clk 0:00:06.5]} 79... Nd3 {[%clk 0:00:05.3]} 80.
Be3 {[%clk 0:00:05.8]} 80... a4 {[%clk 0:00:05.4]} 81. Nxf1 {[%clk 0:00:05.3]}
81... Ka5 {[%clk 0:00:05.1]} 82. Bd2+ {[%clk 0:00:05.2]} 82... b4 {[%clk
0:00:05]} 83. Ne3 {[%clk 0:00:06.1]} 83... a3 {[%clk 0:00:04.5]} 84. Nc2 {[%clk
0:00:06.7]} 84... Kb5 {[%clk 0:00:04.4]} 85. Kd5 {[%clk 0:00:05.9]} 85... Ka4
{[%clk 0:00:03.5]} 86. Kc4 {[%clk 0:00:05.8]} 86... b3 {[%clk 0:00:03.9]} 87.
Kxd3 {[%clk 0:00:02.3]} 87... bxc2 {[%clk 0:00:03.8]} 88. Kxc2 {[%clk
0:00:02.5]} 88... a2 {[%clk 0:00:04.4]} 89. Bc3 {[%clk 0:00:03.4]} 89... a1=Q
{[%clk 0:00:04.9]} 90. Bxa1 {[%clk 0:00:04.3]} 1/2-1/2

[Event "Early-Titled-Tuesday-Blitz-May-28-2024"]
[Site "Chess.com"]
[Date "2024.05.28"]
[Round "3"]
[White "lluiss"]
[Black "Klendi"]
[Result "1-0"]
[WhiteElo "2176"]
[BlackElo "2395"]
[TimeControl "180+1"]
[EndTime "8:31:00 PDT"]
[Termination "lluiss won by checkmate"]

1. Nf3 {[%clk 0:03:00.9]} 1... d5 {[%clk 0:02:53]} 2. d4 {[%clk 0:02:59.7]} 2...
Nf6 {[%clk 0:02:52.1]} 3. c4 {[%clk 0:02:59.6]} 3... c6 {[%clk 0:02:51.8]} 4.
cxd5 {[%clk 0:02:59.6]} 4... cxd5 {[%clk 0:02:51.4]} 5. Nc3 {[%clk 0:03:00.1]}
5... Nc6 {[%clk 0:02:52]} 6. Bf4 {[%clk 0:02:59.4]} 6... a6 {[%clk 0:02:51.4]}
7. e3 {[%clk 0:02:58.9]} 7... Bg4 {[%clk 0:02:51]} 8. Be2 {[%clk 0:02:58.9]}
8... e6 {[%clk 0:02:51]} 9. O-O {[%clk 0:02:56.1]} 9... Bd6 {[%clk 0:02:51.5]}
10. Bxd6 {[%clk 0:02:55.8]} 10... Qxd6 {[%clk 0:02:52.4]} 11. Ne1 {[%clk
0:02:54.8]} 11... Bxe2 {[%clk 0:02:50.7]} 12. Qxe2 {[%clk 0:02:54.8]} 12... O-O
{[%clk 0:02:51.4]} 13. Nd3 {[%clk 0:02:54.8]} 13... Rac8 {[%clk 0:02:49.8]} 14.
Rac1 {[%clk 0:02:53.6]} 14... Rc7 {[%clk 0:02:49.9]} 15. Rc2 {[%clk 0:02:50.6]}
15... Rfc8 {[%clk 0:02:47.1]} 16. Rfc1 {[%clk 0:02:50.6]} 16... b5 {[%clk
0:02:43.3]} 17. h3 {[%clk 0:02:47.3]} 17... Na5 {[%clk 0:02:35.2]} 18. b3 {[%clk
0:02:25.3]} 18... Nc6 {[%clk 0:02:23.8]} 19. Nc5 {[%clk 0:02:04.7]} 19... Ne7
{[%clk 0:01:48.3]} 20. b4 {[%clk 0:01:52.1]} 20... Nd7 {[%clk 0:01:47.9]} 21. a4
{[%clk 0:01:51.2]} 21... bxa4 {[%clk 0:01:25.9]} 22. N3xa4 {[%clk 0:01:50.8]}
22... a5 {[%clk 0:01:25.9]} 23. Nb7 {[%clk 0:01:22]} 23... Rxc2 {[%clk
0:00:57.3]} 24. Nxd6 {[%clk 0:01:20.8]} 24... Rxc1+ {[%clk 0:00:55.8]} 25. Kh2
{[%clk 0:01:19.4]} 25... Rb8 {[%clk 0:00:48.9]} 26. Nc5 {[%clk 0:01:11.3]} 26...
Nxc5 {[%clk 0:00:42.4]} 27. bxc5 {[%clk 0:01:09.9]} 27... Ra8 {[%clk 0:00:40.8]}
28. Qh5 {[%clk 0:01:06]} 28... g6 {[%clk 0:00:36.8]} 29. Qf3 {[%clk 0:01:04]}
29... Nf5 {[%clk 0:00:31.7]} 30. Nxf7 {[%clk 0:00:50.2]} 30... Kxf7 {[%clk
0:00:28.4]} 31. g4 {[%clk 0:00:50.8]} 31... a4 {[%clk 0:00:23.9]} 32. gxf5
{[%clk 0:00:50.8]} 32... gxf5 {[%clk 0:00:22.8]} 33. Qh5+ {[%clk 0:00:50.9]}
33... Kg8 {[%clk 0:00:21.7]} 34. Qg5+ {[%clk 0:00:50.8]} 34... Kf7 {[%clk
0:00:21.8]} 35. Qh6 {[%clk 0:00:49.7]} 35... Kg8 {[%clk 0:00:19.8]} 36. Qxe6+
{[%clk 0:00:46.5]} 36... Kg7 {[%clk 0:00:20]} 37. Qe5+ {[%clk 0:00:46.3]} 37...
Kg6 {[%clk 0:00:20.4]} 38. Qe6+ {[%clk 0:00:44.6]} 38... Kg7 {[%clk 0:00:19.8]}
39. Qxd5 {[%clk 0:00:44.1]} 39... Ra7 {[%clk 0:00:19.3]} 40. Qe5+ {[%clk
0:00:40.1]} 40... Kg6 {[%clk 0:00:19]} 41. Qe6+ {[%clk 0:00:39.5]} 41... Kg7
{[%clk 0:00:19.3]} 42. Qxf5 {[%clk 0:00:36.7]} 42... a3 {[%clk 0:00:19.8]} 43.
Qg5+ {[%clk 0:00:35.1]} 43... Kf7 {[%clk 0:00:19.9]} 44. Qf5+ {[%clk 0:00:34.9]}
44... Kg7 {[%clk 0:00:20.2]} 45. Qe5+ {[%clk 0:00:33.3]} 45... Kf7 {[%clk
0:00:20.4]} 46. Qd5+ {[%clk 0:00:24.7]} 46... Ke7 {[%clk 0:00:19.4]} 47. Qd6+
{[%clk 0:00:20.3]} 47... Kf7 {[%clk 0:00:19.1]} 48. Qf4+ {[%clk 0:00:19.3]}
48... Kg7 {[%clk 0:00:17.4]} 49. Qg5+ {[%clk 0:00:15.7]} 49... Kf7 {[%clk
0:00:17.6]} 50. Qh5+ {[%clk 0:00:15.6]} 50... Ke6 {[%clk 0:00:16.3]} 51. e4
{[%clk 0:00:05.5]} 51... a2 {[%clk 0:00:14.2]} 52. d5+ {[%clk 0:00:05.5]} 52...
Kf6 {[%clk 0:00:14.4]} 53. Qf5+ {[%clk 0:00:04.4]} 53... Kg7 {[%clk 0:00:12.8]}
54. Qg5+ {[%clk 0:00:04.4]} 54... Kf8 {[%clk 0:00:12.3]} 55. Qf6+ {[%clk
0:00:02.9]} 55... Rf7 {[%clk 0:00:11.8]} 56. Qd8+ {[%clk 0:00:01]} 56... Kg7
{[%clk 0:00:11.8]} 57. Qg5+ {[%clk 0:00:01]} 57... Kf8 {[%clk 0:00:11.3]} 58.
Qxc1 {[%clk 0:00:01]} 58... Rxf2+ {[%clk 0:00:11.2]} 59. Kg3 {[%clk 0:00:01]}
59... Rc2 {[%clk 0:00:10.8]} 60. Qxc2 {[%clk 0:00:00.5]} 60... a1=Q {[%clk
0:00:10.7]} 61. Qf2+ {[%clk 0:00:01.4]} 61... Ke8 {[%clk 0:00:10.9]} 62. c6
{[%clk 0:00:01.6]} 62... Qg7+ {[%clk 0:00:10.9]} 63. Kf3 {[%clk 0:00:01.2]}
63... Qf6+ {[%clk 0:00:10.2]} 64. Ke2 {[%clk 0:00:02.1]} 64... Qb2+ {[%clk
0:00:10]} 65. Kf1 {[%clk 0:00:03]} 65... Qc1+ {[%clk 0:00:10]} 66. Kg2 {[%clk
0:00:03.9]} 66... Qg5+ {[%clk 0:00:09.6]} 67. Qg3 {[%clk 0:00:04.8]} 67... Qd2+
{[%clk 0:00:09.4]} 68. Qf2 {[%clk 0:00:05.2]} 68... Qg5+ {[%clk 0:00:09.4]} 69.
Kh1 {[%clk 0:00:05.8]} 69... Qe5 {[%clk 0:00:07.8]} 70. Qe2 {[%clk 0:00:04.8]}
70... Kd8 {[%clk 0:00:06.5]} 71. Kg2 {[%clk 0:00:04.7]} 71... Kc7 {[%clk
0:00:06.6]} 72. Kf1 {[%clk 0:00:04.8]} 72... Kd6 {[%clk 0:00:06.8]} 73. Ke1
{[%clk 0:00:04.9]} 73... Qg3+ {[%clk 0:00:06.3]} 74. Kd2 {[%clk 0:00:04.9]}
74... Qxh3 {[%clk 0:00:06.3]} 75. Qe3 {[%clk 0:00:04.6]} 75... Qg2+ {[%clk
0:00:05.9]} 76. Kd3 {[%clk 0:00:04.7]} 76... Qf1+ {[%clk 0:00:05.7]} 77. Kc3
{[%clk 0:00:04.6]} 77... Qa1+ {[%clk 0:00:05.7]} 78. Kd3 {[%clk 0:00:04.4]}
78... Qa3+ {[%clk 0:00:05.5]} 79. Ke2 {[%clk 0:00:04.5]} 79... Qb2+ {[%clk
0:00:05.7]} 80. Kf3 {[%clk 0:00:04.6]} 80... Qf6+ {[%clk 0:00:05.6]} 81. Qf4+
{[%clk 0:00:04.3]} 81... Qxf4+ {[%clk 0:00:04.5]} 82. Kxf4 {[%clk 0:00:05.2]}
82... h5 {[%clk 0:00:04.2]} 83. Kg3 {[%clk 0:00:04.8]} 83... Ke5 {[%clk
0:00:04.8]} 84. Kh4 {[%clk 0:00:04.9]} 84... Kxe4 {[%clk 0:00:05.5]} 85. c7
{[%clk 0:00:04.7]} 85... Kxd5 {[%clk 0:00:06.1]} 86. c8=Q {[%clk 0:00:05.2]}
86... Ke4 {[%clk 0:00:07]} 87. Kxh5 {[%clk 0:00:05.4]} 87... Kf4 {[%clk
0:00:07.4]} 88. Qf8+ {[%clk 0:00:05.7]} 88... Kg3 {[%clk 0:00:08.3]} 89. Qg7+
{[%clk 0:00:05.9]} 89... Kh2 {[%clk 0:00:09.1]} 90. Qg5 {[%clk 0:00:05.3]} 90...
Kh3 {[%clk 0:00:09.9]} 91. Kg6 {[%clk 0:00:05.8]} 91... Kh2 {[%clk 0:00:10.8]}
92. Kf5 {[%clk 0:00:06.6]} 92... Kh3 {[%clk 0:00:11.4]} 93. Kf4 {[%clk
0:00:07.5]} 93... Kh2 {[%clk 0:00:12.1]} 94. Kf3 {[%clk 0:00:08.4]} 94... Kh3
{[%clk 0:00:12.8]} 95. Qg3# {[%clk 0:00:08.5]} 1-0